bitfinex/quotes_BTCUSD_20251226
["timestamp","ask_amount","ask_price","bid_price","bid_amount"]
[1766736899856,0.01136,88680.0,88664.0,0.01127853]
[1766736900502,0.01136,88680.0,88663.0,0.01127866]
[1766736900732,0.01136,88680.0,88659.0,0.0676746]
[1766736901046,0.01136,88680.0,88662.0,0.01127878]
[1766736901171,0.01136,88680.0,88663.0,0.01127866]
[1766736901386,0.0002,88684.0,88668.0,0.01127802]
[1766736901584,0.0004,88688.0,88677.0,0.01127688]
[1766736901787,0.0004,88688.0,88677.0,0.00035958]
[1766736904563,0.0112756,88687.0,88677.0,0.00035958]
[1766736904802,0.06765882,88681.0,88677.0,0.00035958]
[1766736905012,0.01127649,88680.0,88677.0,0.00035958]
[1766736905416,0.01127649,88680.0,88657.0,0.06767615]
[1766736905417,0.01127713,88675.0,88662.0,0.01136]
[1766736905621,0.00035952,88675.0,88662.0,0.01136]
[1766736905781,0.00035952,88675.0,88664.0,0.01127853]
[1766736906141,0.00035952,88675.0,88666.0,0.01127828]
[1766736906297,0.00035952,88675.0,88668.0,0.01127802]
[1766736906298,5.2e-07,88675.0,88668.0,0.01127802]
[1766736906889,5.2e-07,88675.0,88667.0,0.01127815]
[1766736907072,5.2e-07,88675.0,88666.0,0.01127828]
[1766736908191,5.2e-07,88675.0,88663.0,0.01127866]
[1766736908391,5.2e-07,88675.0,88662.0,0.01136]
[1766736908622,5.2e-07,88675.0,88662.0,0.02263878]
[1766736909142,5.2e-07,88675.0,88663.0,0.01127866]
[1766736909341,5.2e-07,88675.0,88662.0,0.02263878]
[1766736909550,5.2e-07,88675.0,88662.0,0.01136]
[1766736910323,5.2e-07,88675.0,88662.0,0.02263878]
[1766736910651,5.2e-07,88675.0,88666.0,0.06766927]
[1766736910850,5.2e-07,88675.0,88669.0,0.01127789]
[1766736911115,0.0004,88688.0,88672.0,0.01127751]
[1766736911313,0.00050779,88688.0,88676.0,0.011277]
[1766736911585,0.01182779,88688.0,88678.0,0.01127675]
[1766736911812,0.01182779,88688.0,88677.0,0.01127688]
[1766736912022,0.01182779,88688.0,88676.0,0.011277]
[1766736912023,0.00042479,88688.0,88679.0,0.01127662]
[1766736912143,0.01132,88695.0,88687.0,0.0112756]
[1766736912373,0.0004,88697.0,88687.0,0.0112756]
[1766736912374,0.0002,88698.0,88687.0,0.0112756]
[1766736912578,0.01132,88703.0,88691.0,0.0112751]
[1766736912788,0.01132,88703.0,88693.0,0.01127484]
[1766736913133,0.01132,88703.0,88692.0,0.05637487]
[1766736913134,0.00942755,88706.0,88703.0,0.00055]
[1766736913353,0.01132,88708.0,88703.0,0.00055]
[1766736913654,0.0004,88709.0,88700.0,0.01127395]
[1766736913853,0.0004,88709.0,88694.0,0.01132]
[1766736914720,0.0004,88709.0,88695.0,0.01127459]
[1766736914927,0.0004,88709.0,88694.0,0.01132]
[1766736915331,0.01127294,88708.0,88694.0,0.01132]
[1766736915555,0.01127319,88706.0,88694.0,0.01132]
[1766736915722,0.01167281,88709.0,88694.0,0.01132]
[1766736915915,0.01127306,88707.0,88694.0,0.01132]
[1766736916121,0.00095093,88695.0,88694.0,0.01132]
[1766736918269,0.00040093,88695.0,88694.0,0.01132]
[1766736918895,0.0004,88709.0,88696.0,0.05637232]
[1766736919236,0.0002,88734.0,88708.0,0.0563647]
[1766736919375,0.0002,88734.0,88712.0,0.01127243]
[1766736919581,0.01132,88731.0,88714.0,0.01127217]
[1766736919916,0.000549,88714.0,88708.0,0.02259294]
[1766736920374,0.06762328,88727.0,88708.0,0.02259294]
[1766736920577,0.06762328,88727.0,88709.0,0.01127281]
[1766736920839,0.01127065,88726.0,88708.0,0.02259294]
[1766736921233,0.01127039,88728.0,88709.0,0.01127281]
[1766736921443,0.01127052,88727.0,88709.0,0.01127281]
[1766736921643,0.01127052,88727.0,88710.0,0.01127268]
[1766736921784,0.01127052,88727.0,88709.0,0.01127281]
[1766736922236,0.01127039,88728.0,88709.0,0.01127281]
[1766736922492,0.01127052,88727.0,88708.0,0.02259294]
[1766736923098,0.01127052,88727.0,88709.0,0.01127281]
[1766736923518,0.01127141,88720.0,88689.0,0.23001524]
[1766736923755,0.05636222,88712.0,88692.0,0.01127497]
[1766736923965,0.01127319,88706.0,88689.0,0.00010777]
[1766736924156,0.01187052,88747.0,88682.0,0.01127624]
[1766736924157,0.000549,88692.0,88682.0,0.01127624]
[1766736924369,0.000549,88692.0,88683.0,0.02259611]
[1766736924581,0.00024516,88703.0,88686.0,0.01127573]
[1766736924806,0.00024516,88703.0,88690.0,0.01127522]
[1766736925023,0.00024516,88703.0,88696.0,0.05637179]
[1766736925224,0.00024516,88703.0,88698.0,0.01127421]
[1766736925375,0.00013816,88703.0,88699.0,0.01132]
[1766736925585,0.00013816,88703.0,88699.0,0.010878]
[1766736928991,0.00013816,88703.0,88700.0,0.01127395]
[1766736929416,0.00013816,88703.0,88699.0,0.02215208]
[1766736929417,0.0002,88721.0,88704.0,0.01127344]
[1766736929587,0.0002,88721.0,88706.0,0.01127319]
[1766736930017,0.00024527,88711.0,88705.0,0.01127332]
[1766736930341,0.00024527,88711.0,88706.0,0.01132]
[1766736930693,0.00024527,88711.0,88706.0,0.011213]
[1766736931149,2.7e-07,88711.0,88706.0,0.011213]
[1766736932792,2.7e-07,88711.0,88706.0,0.02248619]
[1766736933001,0.05576723,88725.0,88706.0,0.02248619]
[1766736933311,0.01132,88730.0,88714.0,0.01127217]
[1766736933682,0.01132,88730.0,88713.0,0.0112723]
[1766736933955,0.02259014,88730.0,88711.0,0.01127255]
[1766736934110,0.01132,88730.0,88713.0,0.0112723]
[1766736934316,0.01132,88730.0,88712.0,0.01127243]
[1766736934317,0.02259014,88730.0,88712.0,0.01127243]
[1766736934742,0.02259014,88730.0,88713.0,0.0112723]
[1766736934937,0.01127014,88730.0,88713.0,0.0112723]
[1766736935253,0.01132,88731.0,88720.0,0.01127141]
[1766736936044,0.0002,88734.0,88721.0,0.05635644]
[1766736936402,0.000245,88721.0,88716.0,0.01127192]
[1766736936739,0.01126976,88733.0,88716.0,0.01127192]
[1766736936941,0.01146963,88734.0,88716.0,0.01127192]
[1766736937147,0.01132,88733.0,88717.0,0.01127179]
[1766736937349,0.01126989,88732.0,88714.0,0.01132]
[1766736937551,0.01127039,88728.0,88714.0,0.01132]
[1766736937773,0.01127078,88725.0,88714.0,0.011075]
[1766736938017,0.01127078,88725.0,88710.0,0.01132]
[1766736938319,0.01127065,88726.0,88710.0,0.01132]
[1766736938937,0.00024523,88719.0,88710.0,0.01132]
[1766736940309,0.00024523,88719.0,88710.0,0.00219214]
[1766736940819,0.00024523,88719.0,88704.0,0.01132]
[1766736941006,0.00024523,88719.0,88704.0,0.01057869]
[1766736941684,0.01127166,88718.0,88704.0,0.01057869]
[1766736942257,0.01151677,88719.0,88704.0,0.01057869]
[1766736942452,0.00024523,88719.0,88704.0,0.01057869]
[1766736943570,0.01151677,88719.0,88704.0,0.01057869]
[1766736943767,0.00024523,88719.0,88704.0,0.01057869]
[1766736944748,0.01151677,88719.0,88704.0,0.01057869]
[1766736944971,0.01127166,88718.0,88704.0,0.01057869]
[1766736945138,0.01127243,88712.0,88700.0,0.0002]
[1766736945327,0.0112723,88713.0,88700.0,0.0002]
[1766736945710,0.01127243,88712.0,88700.0,0.0002]
[1766736945940,0.0112723,88713.0,88700.0,0.0002]
[1766736946249,0.01127217,88714.0,88700.0,0.0002]
[1766736946613,0.01132,88715.0,88700.0,0.0002]
[1766736946837,0.01132,88715.0,88705.0,0.05636647]
[1766736947040,0.01132,88715.0,88707.0,0.01127306]
[1766736947212,0.00024523,88719.0,88709.0,0.01127281]
[1766736947415,0.00024523,88719.0,88711.0,0.01127255]
[1766736947618,0.00024523,88719.0,88709.0,0.01127281]
[1766736947818,0.00024523,88719.0,88706.0,0.02254919]
[1766736948656,0.01127166,88718.0,88706.0,0.02254919]
[1766736948797,0.02890553,88715.0,88703.0,0.01132]
[1766736949032,0.0112723,88713.0,88703.0,0.01132]
[1766736949693,0.01127217,88714.0,88703.0,0.01132]
[1766736949867,0.0112723,88713.0,88703.0,0.01132]
[1766736950843,0.01127217,88714.0,88703.0,0.01132]
[1766736951116,0.01127192,88716.0,88703.0,0.01132]
[1766736951319,0.01127205,88715.0,88703.0,0.01132]
[1766736951472,0.01127217,88714.0,88703.0,0.01132]
[1766736951902,0.06763244,88715.0,88703.0,0.01132]
[1766736952296,0.01127217,88714.0,88703.0,0.01132]
[1766736952523,0.01127205,88715.0,88703.0,0.01132]
[1766736952724,0.01127192,88716.0,88703.0,0.01132]
[1766736953436,0.01127217,88714.0,88703.0,0.01132]
[1766736953729,0.0112723,88713.0,88703.0,0.01132]
[1766736954561,0.01127255,88711.0,88703.0,0.01132]
[1766736954690,0.01127205,88715.0,88703.0,0.01132]
[1766736955145,0.01127192,88716.0,88703.0,0.01132]
[1766736955538,0.05660328,88719.0,88703.0,0.01132]
[1766736955724,0.01127166,88718.0,88703.0,0.01132]
[1766736955925,0.01127179,88717.0,88703.0,0.01132]
[1766736956122,0.01132,88716.0,88702.0,0.0112737]
[1766736956375,0.01132,88716.0,88700.0,0.01147395]
[1766736956877,0.02259192,88716.0,88700.0,0.0002]
[1766736957056,0.01127205,88715.0,88700.0,0.0002]
[1766736957261,0.02259192,88716.0,88700.0,0.0002]
[1766736957579,0.01127205,88715.0,88700.0,0.0002]
[1766736958082,0.01127217,88714.0,88700.0,0.0002]
[1766736958390,0.01127255,88711.0,88700.0,0.0002]
[1766736958727,0.01127268,88710.0,88700.0,0.0002]
[1766736958967,0.0112723,88713.0,88700.0,0.0002]
[1766736959183,0.01127217,88714.0,88700.0,0.0002]
[1766736959968,0.01127205,88715.0,88700.0,0.0002]
[1766736960146,0.02259192,88716.0,88700.0,0.0002]
[1766736960345,0.01127243,88712.0,88700.0,0.0002]
[1766736961085,0.0112723,88713.0,88700.0,0.0002]
[1766736961446,0.01127166,88718.0,88713.0,0.000549]
[1766736961850,0.01127192,88716.0,88713.0,0.000549]
[1766736962189,0.01127179,88717.0,88700.0,0.01147395]
[1766736962391,0.00024523,88719.0,88716.0,0.00055]
[1766736962619,0.00024523,88719.0,88706.0,0.01132]
[1766736962802,0.00024523,88719.0,88706.0,0.02259319]
[1766736963232,0.00024523,88719.0,88712.0,0.02254919]
[1766736965619,2.3e-07,88719.0,88712.0,0.02254919]
[1766736965799,0.01127014,88730.0,88712.0,0.02254919]
[1766736966006,0.01127052,88727.0,88712.0,0.02254919]
[1766736966536,0.01127065,88726.0,88712.0,0.02254919]
[1766736966705,0.01127052,88727.0,88712.0,0.02254919]
[1766736967106,0.01127039,88728.0,88712.0,0.02254919]
[1766736967553,0.01127052,88727.0,88712.0,0.02254919]
[1766736967861,0.01127039,88728.0,88712.0,0.02254919]
[1766736969040,0.01127052,88727.0,88712.0,0.02254919]
[1766736969247,0.05635362,88726.0,88705.0,0.06763949]
[1766736969452,0.01132,88731.0,88701.0,0.02254919]
[1766736969777,0.01127205,88715.0,88701.0,0.02254919]
[1766736969980,0.01127192,88716.0,88701.0,0.02254919]
[1766736970136,0.01127179,88717.0,88701.0,0.02254919]
[1766736970340,0.01127205,88715.0,88701.0,0.02254919]
[1766736970535,0.01127179,88717.0,88701.0,0.02254919]
[1766736970923,0.02259128,88721.0,88702.0,0.0112737]
[1766736971123,0.01127141,88720.0,88702.0,0.0112737]
[1766736971348,0.01127141,88720.0,88701.0,0.03382302]
[1766736971349,0.01127166,88718.0,88701.0,0.03382302]
[1766736971547,0.01127166,88718.0,88705.0,0.01132]
[1766736971755,0.01127179,88717.0,88705.0,0.01132]
[1766736972384,0.01127192,88716.0,88705.0,0.01132]
[1766736972732,0.0112723,88713.0,88705.0,0.011075]
[1766736972951,0.01127255,88711.0,88700.0,0.0002]
[1766736973154,0.01127255,88711.0,88696.0,0.00010779]
[1766736973155,0.01127319,88706.0,88696.0,0.00010779]
[1766736973435,0.05637105,88698.0,88696.0,0.00010779]
[1766736974306,0.01127408,88699.0,88696.0,0.00010779]
[1766736974908,0.01127497,88692.0,88672.0,0.02254919]
[1766736975086,0.00010769,88692.0,88675.0,0.01132]
[1766736975280,0.0112751,88691.0,88675.0,0.01132]
[1766736975468,0.01132,88691.0,88678.0,0.01127675]
[1766736975674,0.01132,88691.0,88679.0,0.01127662]
[1766736975872,0.010771,88691.0,88679.0,0.01127662]
[1766736976294,0.00010769,88692.0,88683.0,0.01127611]
[1766736976492,0.01132,88699.0,88683.0,0.01127611]
[1766736976694,0.01132,88700.0,88685.0,0.01127586]
[1766736976935,0.01132,88700.0,88684.0,0.01127599]
[1766736977921,0.01127395,88700.0,88685.0,0.01132]
[1766736978268,0.01127408,88699.0,88685.0,0.01132]
[1766736978474,0.01127395,88700.0,88685.0,0.01132]
[1766736979500,0.05636978,88700.0,88685.0,0.01132]
[1766736979683,0.01127408,88699.0,88685.0,0.01132]
[1766736980409,0.01127421,88698.0,88685.0,0.01132]
[1766736980581,0.01127395,88700.0,88685.0,0.01132]
[1766736980931,0.01127408,88699.0,88685.0,0.01132]
[1766736981157,0.01127344,88704.0,88685.0,0.01132]
[1766736981409,0.01127383,88701.0,88685.0,0.01132]
[1766736981601,0.01127395,88700.0,88685.0,0.01132]
[1766736981801,0.01127408,88699.0,88685.0,0.01132]
[1766736982857,0.01127383,88701.0,88685.0,0.01132]
[1766736983043,0.01127395,88700.0,88685.0,0.01132]
[1766736983655,0.01127408,88699.0,88685.0,0.01132]
[1766736984243,0.01127395,88700.0,88685.0,0.01132]
[1766736984646,0.01127408,88699.0,88685.0,0.01132]
[1766736984854,0.01127395,88700.0,88685.0,0.01132]
[1766736985330,0.01127408,88699.0,88685.0,0.01132]
[1766736985488,0.01117408,88699.0,88685.0,0.01132]
[1766736985684,0.01127408,88699.0,88685.0,0.01132]
[1766736985917,0.01117433,88697.0,88685.0,0.01132]
[1766736986286,0.01127459,88695.0,88685.0,0.01132]
[1766736986474,0.01107433,88697.0,88685.0,0.01132]
[1766736986681,0.01117408,88699.0,88685.0,0.01132]
[1766736987104,0.01132,88699.0,88685.0,0.01132]
[1766736987310,0.02249408,88699.0,88685.0,0.01132]
[1766736988278,0.01127421,88698.0,88685.0,0.01132]
[1766736988976,0.02249408,88699.0,88685.0,0.01132]
[1766736989141,0.01127421,88698.0,88685.0,0.01132]
[1766736989522,0.01127433,88697.0,88685.0,0.01132]
[1766736989719,0.02249408,88699.0,88685.0,0.01132]
[1766736989989,0.06764578,88698.0,88685.0,0.011214]
[1766736990165,0.01127433,88697.0,88685.0,0.011214]
[1766736990364,0.01127446,88696.0,88685.0,0.011214]
[1766736990566,0.01127421,88698.0,88685.0,0.011214]
[1766736990765,0.02249408,88699.0,88685.0,0.011214]
[1766736990946,0.01127433,88697.0,88685.0,0.011214]
[1766736991150,0.01127421,88698.0,88685.0,0.011214]
[1766736991868,0.01122,88699.0,88685.0,0.011214]
[1766736992458,0.02249408,88699.0,88685.0,0.011214]
[1766736993347,0.01127433,88697.0,88685.0,0.011214]
[1766736993473,0.01127471,88694.0,88685.0,0.011214]
[1766736993674,0.01127459,88695.0,88685.0,0.011214]
[1766736993881,0.01127433,88697.0,88685.0,0.011214]
[1766736994087,0.01127446,88696.0,88685.0,0.011214]
[1766736994471,0.01127484,88693.0,88685.0,0.011214]
[1766736995300,0.01127471,88694.0,88685.0,0.011214]
[1766736997446,0.01127484,88693.0,88685.0,0.011214]
[1766736997652,0.01127471,88694.0,88685.0,0.011214]
[1766736998882,0.01127459,88695.0,88685.0,0.011214]
[1766736999317,0.01127471,88694.0,88685.0,0.011214]
[1766736999714,0.01127484,88693.0,88685.0,0.011214]
[1766737000208,0.01127459,88695.0,88685.0,0.011214]
[1766737000410,0.06764728,88696.0,88685.0,0.011214]
[1766737000717,0.01127446,88696.0,88685.0,0.011214]
[1766737002116,0.01127471,88694.0,88685.0,0.011214]
[1766737002686,0.01127459,88695.0,88685.0,0.011214]
[1766737002994,0.01127471,88694.0,88685.0,0.011214]
[1766737003210,0.01127459,88695.0,88685.0,0.011214]
[1766737003603,0.01127471,88694.0,88685.0,0.011214]
[1766737005410,0.01127459,88695.0,88685.0,0.011214]
[1766737006039,0.01127446,88696.0,88685.0,0.011214]
[1766737006214,0.01127459,88695.0,88685.0,0.011214]
[1766737006657,0.01127471,88694.0,88685.0,0.011214]
[1766737007121,0.01127446,88696.0,88685.0,0.011214]
[1766737007521,0.01127471,88694.0,88685.0,0.011214]
[1766737009025,0.01127459,88695.0,88685.0,0.011214]
[1766737009776,0.01127446,88696.0,88685.0,0.011214]
[1766737009981,0.01127459,88695.0,88685.0,0.011214]
[1766737010972,0.01127471,88694.0,88685.0,0.011214]
[1766737011311,0.01127484,88693.0,88685.0,0.011214]
[1766737011536,0.01127471,88694.0,88685.0,0.011214]
[1766737011819,0.01127459,88695.0,88685.0,0.011214]
[1766737012932,0.01127471,88694.0,88685.0,0.011214]
[1766737013758,0.06764732,88696.0,88685.0,0.011214]
[1766737014493,0.01127459,88695.0,88685.0,0.011214]
[1766737014694,0.01127471,88694.0,88685.0,0.011214]
[1766737015318,0.01127459,88695.0,88685.0,0.011214]
[1766737015528,0.01127471,88694.0,88685.0,0.011214]
[1766737015733,0.06764787,88695.0,88685.0,0.011214]
[1766737016018,0.01127471,88694.0,88685.0,0.011214]
[1766737016220,0.01127446,88696.0,88685.0,0.011214]
[1766737016375,0.01127433,88697.0,88685.0,0.011214]
[1766737016575,0.01127446,88696.0,88685.0,0.011214]
[1766737017026,0.01127446,88696.0,88683.0,0.00010769]
[1766737017577,0.01132,88698.0,88696.0,0.000549]
[1766737017778,0.01132,88698.0,88683.0,0.00010769]
[1766737018129,0.01132,88698.0,88686.0,0.01127573]
[1766737018384,0.01132,88698.0,88683.0,0.0113838]
[1766737018729,0.01132,88698.0,88684.0,0.01127599]
[1766737018915,0.01132,88698.0,88683.0,0.0113838]
[1766737019114,0.01132,88698.0,88683.0,0.00010769]
[1766737019574,0.01132,88698.0,88683.0,0.0113838]
[1766737020150,0.06883,88697.0,88683.0,0.0113838]
[1766737020356,0.06883,88697.0,88684.0,0.01127599]
[1766737020555,0.06883,88697.0,88685.0,0.01127586]
[1766737020935,0.06883,88697.0,88686.0,0.01127573]
[1766737021279,0.068281,88697.0,88683.0,0.00010769]
[1766737021473,0.06883,88695.0,88683.0,0.00010769]
[1766737022029,0.08010459,88695.0,88683.0,0.00010769]
[1766737022489,0.06883,88693.0,88683.0,0.00010769]
[1766737024633,0.08010484,88693.0,88683.0,0.00010769]
[1766737024839,0.06883,88693.0,88683.0,0.00010769]
[1766737025655,0.08010484,88693.0,88683.0,0.00010769]
[1766737025806,0.06883,88693.0,88683.0,0.00010769]
[1766737026881,0.06883,88693.0,88668.0,0.05644]
[1766737026882,0.08010484,88693.0,88668.0,0.05644]
[1766737027079,0.06883,88669.0,88648.0,0.01128057]
[1766737027364,0.06883,88665.0,88652.0,0.02254919]
[1766737028666,0.06891903,88665.0,88652.0,0.02254919]
[1766737028865,0.06891903,88665.0,88652.0,0.03382925]
[1766737029009,0.08019743,88665.0,88652.0,0.02254919]
[1766737029214,0.06883,88663.0,88652.0,0.02254919]
[1766737030194,0.06883,88664.0,88646.0,0.01132]
[1766737030416,0.001099,88646.0,88642.0,0.02254919]
[1766737030883,0.08011018,88651.0,88642.0,0.02254919]
[1766737031031,0.06883,88649.0,88640.0,0.01132]
[1766737033792,0.05756572,88649.0,88640.0,0.01132]
[1766737039787,0.06884616,88649.0,88640.0,0.01132]
[1766737039994,0.05756572,88649.0,88640.0,0.01132]
[1766737041563,0.01128069,88647.0,88640.0,0.01132]
[1766737041785,0.07916197,88637.0,88617.0,0.01128451]
[1766737041998,0.06788,88636.0,88618.0,0.01132]
[1766737042245,0.07916209,88636.0,88620.0,0.40308989]
[1766737042469,0.06788,88634.0,88618.0,0.01132]
[1766737042684,0.06788,88633.0,88618.0,0.01132]
[1766737042892,0.06788,88631.0,88620.0,0.40308989]
[1766737043105,0.06788,88631.0,88618.0,0.01167952]
[1766737043403,0.07916273,88631.0,88618.0,0.01167952]
[1766737043591,0.06788,88631.0,88618.0,0.01167952]
[1766737043794,0.07916273,88631.0,88618.0,0.01167952]
[1766737044160,0.06788,88631.0,88618.0,0.01167952]
[1766737044599,0.06788,88631.0,88618.0,0.0229639]
[1766737044824,0.06788,88631.0,88620.0,0.40308989]
[1766737045254,0.01132,88635.0,88632.0,0.0112826]
[1766737045459,0.06788,88644.0,88630.0,0.01128286]
[1766737045659,0.06788,88644.0,88630.0,0.40308989]
[1766737046077,0.06788,88653.0,88634.0,0.40308989]
[1766737046274,0.06788,88653.0,88643.0,0.40308989]
[1766737046480,0.06788,88653.0,88644.0,0.01132]
[1766737047278,0.06788,88653.0,88645.0,0.01128095]
[1766737047482,0.06788,88653.0,88644.0,0.02260107]
[1766737047714,0.06788,88653.0,88645.0,0.01128095]
[1766737048484,0.06788,88653.0,88645.0,0.01164047]
[1766737049330,0.06788,88653.0,88646.0,0.01128082]
[1766737049504,0.06788,88653.0,88645.0,0.01164047]
[1766737049711,0.06788,88653.0,88645.0,0.00035952]
[1766737051133,0.06788,88653.0,88645.0,0.01164047]
[1766737051964,0.01127891,88661.0,88645.0,0.01164047]
[1766737052764,0.01127891,88661.0,88650.0,0.40308989]
[1766737052963,0.01132,88662.0,88650.0,0.40308989]
[1766737054009,0.02259878,88662.0,88650.0,0.40308989]
[1766737054209,0.01132,88662.0,88650.0,0.40308989]
[1766737054562,0.02259878,88662.0,88650.0,0.40308989]
[1766737054759,0.000549,88650.0,88645.0,0.00035952]
[1766737054989,0.01127917,88659.0,88645.0,0.00035952]
[1766737055213,0.01127942,88657.0,88645.0,0.00035952]
[1766737055616,0.01127929,88658.0,88645.0,0.00035952]
[1766737056735,0.01127929,88658.0,88640.0,0.40308989]
[1766737056736,0.01127929,88658.0,88646.0,0.01132]
[1766737056935,0.01163836,88658.0,88646.0,0.01132]
[1766737057332,0.00035907,88658.0,88646.0,0.01132]
[1766737057540,0.01163836,88658.0,88646.0,0.01132]
[1766737057941,0.00035907,88658.0,88646.0,0.01132]
[1766737058139,0.01127942,88657.0,88646.0,0.01132]
[1766737058371,0.01127955,88656.0,88646.0,0.01132]
[1766737059016,0.01127942,88657.0,88646.0,0.01132]
[1766737059346,0.01127955,88656.0,88646.0,0.01132]
[1766737059525,0.01163836,88658.0,88646.0,0.01132]
[1766737060355,0.00035907,88658.0,88646.0,0.01132]
[1766737060885,7e-08,88658.0,88655.0,0.01127967]
[1766737061089,7e-08,88658.0,88656.0,0.05639739]
[1766737061292,0.01127662,88679.0,88677.0,0.00019151]
[1766737061469,0.01127688,88677.0,88660.0,0.40308989]
[1766737061682,0.01127688,88677.0,88667.0,0.0002]
[1766737061844,0.01127751,88672.0,88660.0,0.40308989]
[1766737062064,0.01127738,88673.0,88660.0,0.40308989]
[1766737062287,0.06766315,88675.0,88660.0,0.40308989]
[1766737062288,0.01132,88674.0,88660.0,0.40308989]
[1766737062442,0.01127764,88671.0,88660.0,0.40308989]
[1766737062639,0.01127777,88670.0,88654.0,0.01132]
[1766737063389,0.01127777,88670.0,88654.0,0.0225998]
[1766737063643,0.01127828,88666.0,88654.0,0.01132]
[1766737063829,0.01127828,88666.0,88654.0,0.010802]
[1766737064232,0.0112784,88665.0,88654.0,0.010802]
[1766737064864,0.01127853,88664.0,88654.0,0.010802]
[1766737065066,0.01127891,88661.0,88654.0,0.01132]
[1766737065359,0.01127878,88662.0,88654.0,0.01132]
[1766737065565,0.01127891,88661.0,88654.0,0.01132]
[1766737065795,0.01127878,88662.0,88654.0,0.01132]
[1766737066282,0.01127917,88659.0,88654.0,0.01132]
[1766737066414,0.01127866,88663.0,88654.0,0.01132]
[1766737066616,0.01127853,88664.0,88654.0,0.01132]
[1766737067252,0.01127866,88663.0,88654.0,0.01132]
[1766737067654,0.01127853,88664.0,88654.0,0.01132]
[1766737067862,0.01127878,88662.0,88654.0,0.01132]
[1766737069534,0.01127866,88663.0,88654.0,0.01132]
[1766737070264,0.01127878,88662.0,88654.0,0.01132]
[1766737070955,0.01127878,88662.0,88648.0,0.0002]
[1766737071169,0.01127929,88658.0,88648.0,0.0002]
[1766737071477,0.02259929,88658.0,88648.0,0.0002]
[1766737071650,0.01128031,88650.0,88641.0,0.0024888]
[1766737071867,0.01128095,88645.0,88633.0,0.01132]
[1766737072191,0.01128082,88646.0,88633.0,0.01132]
[1766737072397,0.01128006,88652.0,88633.0,0.01132]
[1766737072624,0.02260018,88651.0,88633.0,0.02260247]
[1766737072838,0.02269323,88651.0,88633.0,0.02260247]
[1766737073067,0.01128095,88645.0,88633.0,0.01132]
[1766737073282,0.05640405,88647.0,88633.0,0.01132]
[1766737073494,0.01132,88646.0,88633.0,0.02260247]
[1766737073763,0.01132,88646.0,88635.0,0.01128222]
[1766737074158,0.01132,88646.0,88636.0,0.01128209]
[1766737074375,0.01132,88646.0,88633.0,0.01132]
[1766737074810,0.02260082,88646.0,88633.0,0.01132]
[1766737075046,0.01132,88646.0,88633.0,0.01132]
[1766737075520,0.01128095,88645.0,88633.0,0.01132]
[1766737075742,0.01128107,88644.0,88633.0,0.01132]
[1766737075917,0.01128107,88644.0,88627.0,0.01132]
[1766737075918,0.01128133,88642.0,88627.0,0.01132]
[1766737076215,0.01128158,88640.0,88627.0,0.01132]
[1766737076509,0.01128146,88641.0,88627.0,0.01132]
[1766737076675,0.01128184,88638.0,88623.0,0.01132]
[1766737077915,0.01128197,88637.0,88623.0,0.01132]
[1766737078473,0.01128184,88638.0,88623.0,0.01132]
[1766737078676,0.02260197,88637.0,88623.0,0.01132]
[1766737079766,0.01132,88637.0,88623.0,0.01132]
[1766737079976,0.02260197,88637.0,88623.0,0.01132]
[1766737080178,0.01128247,88633.0,88623.0,0.01132]
[1766737080349,0.0112826,88632.0,88616.0,0.0002]
[1766737080595,0.01128273,88631.0,88616.0,0.0002]
[1766737080720,0.01132,88630.0,88616.0,0.0002]
[1766737080930,0.01128298,88629.0,88616.0,0.0002]
[1766737081161,0.01132,88630.0,88619.0,0.4036474]
[1766737081326,0.01128209,88636.0,88619.0,0.4036474]
[1766737081327,0.01128095,88645.0,88630.0,0.00055]
[1766737081513,0.01132,88644.0,88630.0,0.4036474]
[1766737081937,0.02260107,88644.0,88630.0,0.4036474]
[1766737082270,0.02260107,88644.0,88628.0,0.01128311]
[1766737082575,0.01132,88644.0,88630.0,0.4036474]
[1766737082971,0.02260107,88644.0,88630.0,0.4036474]
[1766737083171,0.01132,88644.0,88630.0,0.4036474]
[1766737083378,9.305e-05,88651.0,88644.0,0.00051007]
[1766737083781,9.305e-05,88651.0,88641.0,0.41492886]
[1766737083954,9.305e-05,88651.0,88642.0,0.01128133]
[1766737084158,0.0112784,88665.0,88648.0,0.01128057]
[1766737084343,0.0002,88661.0,88650.0,0.4036474]
[1766737084763,0.01147891,88661.0,88650.0,0.4036474]
[1766737084964,0.0002,88661.0,88650.0,0.4036474]
[1766737085483,0.01152,88661.0,88650.0,0.41492771]
[1766737085708,0.01152,88661.0,88652.0,0.01128006]
[1766737086114,0.0002,88661.0,88653.0,0.01127993]
[1766737086409,0.01132,88666.0,88656.0,0.01127955]
[1766737086602,0.01132,88666.0,88657.0,0.01127942]
[1766737087163,0.01132,88666.0,88656.0,0.01127955]
[1766737087365,0.01127738,88673.0,88657.0,0.01127942]
[1766737087617,0.01132,88672.0,88656.0,0.01127955]
[1766737087814,0.01132,88672.0,88657.0,0.01127942]
[1766737088217,0.06766296,88675.0,88659.0,0.01127917]
[1766737088221,0.01132,88671.0,88659.0,0.01127917]
[1766737088437,0.01132,88671.0,88656.0,0.01127955]
[1766737088620,0.01132,88671.0,88657.0,0.01127942]
[1766737089129,0.01132,88671.0,88655.0,0.06767803]
[1766737089130,0.01127777,88670.0,88654.0,0.0112798]
[1766737089721,0.01132,88671.0,88655.0,0.01127967]
[1766737089925,0.01127777,88670.0,88652.0,0.0789999]
[1766737090141,0.08604789,88669.0,88653.0,0.01127993]
[1766737090319,0.08604802,88668.0,88652.0,0.02260006]
[1766737090523,0.08604828,88666.0,88652.0,0.01132]
[1766737091118,0.07477,88666.0,88652.0,0.01132]
[1766737091373,0.08604828,88666.0,88652.0,0.01132]
[1766737092016,0.07477,88666.0,88652.0,0.01132]
[1766737092222,0.08604828,88666.0,88652.0,0.01132]
[1766737093055,0.07477,88666.0,88652.0,0.01132]
[1766737093372,0.08604828,88666.0,88652.0,0.01132]
[1766737093767,0.07477,88666.0,88652.0,0.01132]
[1766737094011,0.07477,88666.0,88654.0,0.0112798]
[1766737094208,0.07477,88666.0,88653.0,0.01127993]
[1766737095528,0.07477,88666.0,88654.0,0.0112798]
[1766737096227,0.07477,88666.0,88653.0,0.01127993]
[1766737096435,0.07477,88666.0,88652.0,0.01132]
[1766737096580,0.07477,88666.0,88653.0,0.01127993]
[1766737097032,0.07477,88666.0,88652.0,0.02260006]
[1766737097395,0.07477,88666.0,88653.0,0.01127993]
[1766737098127,0.07477,88666.0,88654.0,0.0112798]
[1766737098434,0.07477,88666.0,88652.0,0.01132]